bitfinex-derivatives/quotes_BTCF0:USTF0_20240923
["timestamp","ask_amount","ask_price","bid_price","bid_amount"]
[1727133484898,0.07878429,63411.0,63407.0,0.11]
[1727133485192,0.07878429,63410.0,63407.0,0.11]
[1727133485398,0.07878429,63410.0,63407.0,0.111]
[1727133485601,0.07878074,63411.0,63410.0,0.078855]
[1727133486705,0.07878074,63413.0,63412.0,0.078853]
[1727133486891,0.07878074,63414.0,63413.0,0.078852]
[1727133487904,0.188848,63416.0,63414.0,0.07885]
[1727133488109,0.02556498,63415.0,63414.0,0.07885]
[1727133489799,0.02556498,63415.0,63414.0,0.08085]
[1727133492296,0.02556516,63415.0,63414.0,0.08085]
[1727133494904,0.06331152,63415.0,63414.0,0.08085]
[1727133502018,0.188848,63416.0,63414.0,0.08085]
[1727133502311,0.02556521,63415.0,63414.0,0.08085]
[1727133502504,0.02556525,63415.0,63414.0,0.002]
[1727133502706,0.07871103,63415.0,63414.0,0.08085]
[1727133502910,0.07871103,63417.0,63416.0,0.078848]
[1727133503412,0.07871103,63418.0,63417.0,0.078847]
[1727133503615,0.15755603,63418.0,63417.0,0.078847]
[1727133504316,0.078845,63418.0,63417.0,0.078847]
[1727133504506,0.15756216,63418.0,63417.0,0.078847]
[1727133504705,0.09444888,63421.0,63416.0,0.11]
[1727133504907,0.08241716,63425.0,63420.0,0.3608]
[1727133505101,0.07871716,63427.0,63426.0,0.078835]
[1727133505305,0.07871716,63427.0,63420.0,0.4745]
[1727133505306,0.07871224,63427.0,63420.0,0.4745]
[1727133505518,0.11,63428.0,63420.0,0.4745]
[1727133505519,0.11,63428.0,63427.0,0.078834]
[1727133506208,0.18871224,63428.0,63427.0,0.078834]
[1727133506610,0.123,63428.0,63427.0,0.079834]
[1727133506811,0.13,63428.0,63427.0,0.080834]
[1727133507506,0.02,63428.0,63427.0,0.080834]
[1727133507713,0.13,63428.0,63427.0,0.080834]
[1727133509915,0.15555956,63428.0,63427.0,0.080834]
[1727133511507,0.15556,63428.0,63427.0,0.080834]
[1727133516117,0.15555969,63428.0,63427.0,0.080834]
[1727133516511,0.0838881,63428.0,63427.0,0.080834]
[1727133516825,0.04555981,63428.0,63427.0,0.080834]
[1727133517127,0.02,63428.0,63427.0,0.080834]
[1727133520135,0.02,63428.0,63427.0,0.190834]
[1727133521014,0.02,63428.0,63427.0,0.236034]
[1727133522210,0.02,63428.0,63427.0,0.364368]
[1727133522407,0.018,63428.0,63427.0,0.363368]
[1727133522712,0.011,63428.0,63427.0,0.362368]
[1727133528421,0.011,63428.0,63427.0,0.835368]
[1727133529126,0.011,63428.0,63427.0,0.362368]
[1727133531621,0.011,63428.0,63427.0,1.435368]
[1727133537321,0.011,63428.0,63427.0,0.835368]
[1727133538038,0.011,63428.0,63427.0,0.756534]
[1727133539844,0.011,63428.0,63427.0,1.356534]
[1727133541533,0.011,63428.0,63427.0,0.173534]
[1727133541731,0.011,63428.0,63427.0,0.756534]
[1727133541940,0.011,63428.0,63427.0,0.283534]
[1727133542236,0.011,63428.0,63427.0,0.756534]
[1727133542436,0.011,63428.0,63427.0,0.283534]
[1727133543739,0.011,63428.0,63427.0,0.756534]
[1727133543938,0.011,63428.0,63427.0,0.283534]
[1727133544140,0.011,63428.0,63427.0,0.756534]
[1727133544534,0.011,63428.0,63427.0,1.356534]
[1727133545138,0.011,63428.0,63427.0,0.756534]
[1727133545540,0.011,63428.0,63427.0,1.356534]
[1727133545737,0.011,63428.0,63427.0,0.283534]
[1727133546044,0.011,63428.0,63427.0,1.356534]
[1727133546234,0.011,63428.0,63427.0,0.283534]
[1727133547143,0.10535865,63428.0,63427.0,0.283534]
[1727133547842,0.13091528,63428.0,63427.0,0.283534]
[1727133548043,0.13091528,63428.0,63427.0,0.188834]
[1727133548245,0.03655663,63428.0,63427.0,0.188834]
[1727133548935,0.03655739,63428.0,63427.0,0.188834]
[1727133549134,0.11539039,63428.0,63427.0,0.188834]
[1727133549645,0.1540657,63428.0,63427.0,0.188834]
[1727133550337,0.1540657,63428.0,63427.0,0.11]
[1727133551135,0.1540657,63428.0,63420.0,0.46030781]
[1727133551136,0.078842,63421.0,63420.0,0.05170781]
[1727133551442,0.078842,63421.0,63413.0,0.3688]
[1727133551443,0.07885,63414.0,63413.0,0.0037]
[1727133551638,0.07885,63414.0,63413.0,0.38904852]
[1727133551639,0.10440739,63414.0,63413.0,0.38904852]
[1727133551838,0.10440739,63414.0,63413.0,0.3608]
[1727133552148,0.078852,63413.0,63412.0,0.11]
[1727133552446,0.10440939,63413.0,63412.0,0.11]
[1727133553546,0.07972209,63413.0,63412.0,0.12]
[1727133554048,0.002,63413.0,63412.0,0.13]
[1727133554246,0.002,63413.0,63412.0,0.208853]
[1727133554946,0.002,63413.0,63412.0,0.207853]
[1727133555441,0.001,63413.0,63412.0,0.198853]
[1727133555637,0.002,63413.0,63412.0,0.208853]
[1727133555947,0.001,63413.0,63412.0,0.198853]
[1727133556138,0.002,63413.0,63412.0,0.208853]
[1727133557450,0.001,63413.0,63412.0,0.198853]
[1727133557652,0.002,63413.0,63412.0,0.208853]
[1727133558344,0.002,63413.0,63412.0,0.27181482]
[1727133558541,0.002,63413.0,63412.0,0.23350514]
[1727133558848,0.002,63413.0,63412.0,0.208853]
[1727133559948,0.002,63413.0,63412.0,0.27181482]
[1727133561162,0.078843,63420.0,63417.0,0.078846]
[1727133561454,0.078843,63420.0,63419.0,0.11]
[1727133561952,0.078843,63420.0,63419.0,0.188844]
[1727133562138,0.15756509,63420.0,63419.0,0.188844]
[1727133562847,0.15756509,63420.0,63419.0,0.191844]
[1727133563157,0.15756509,63420.0,63419.0,0.194844]
[1727133564037,0.07864489,63422.0,63419.0,0.116]
[1727133564251,0.07864433,63422.0,63421.0,0.11]
[1727133564840,0.07864433,63423.0,63421.0,0.11]
[1727133565051,0.07864433,63423.0,63422.0,0.07884]
[1727133566746,0.15748333,63423.0,63422.0,0.07884]
[1727133567956,0.15748333,63423.0,63422.0,0.10759434]
[1727133569455,0.078839,63423.0,63422.0,0.10759434]
[1727133572860,0.078839,63423.0,63422.0,0.07884]
[1727133575266,0.10699823,63423.0,63422.0,0.07884]
[1727133576053,0.078844,63420.0,63419.0,0.078843]
[1727133577464,0.078844,63420.0,63419.0,0.081843]
[1727133578063,0.078844,63420.0,63419.0,0.084843]
[1727133579764,0.07867525,63422.0,63421.0,0.078842]
[1727133580061,0.43964,63423.0,63422.0,0.07884]
[1727133580865,0.43964,63423.0,63422.0,0.18884]
[1727133583360,0.3608,63423.0,63422.0,0.18884]
[1727133584670,0.43947525,63423.0,63422.0,0.18884]
[1727133585263,0.42481699,63423.0,63422.0,0.18884]
[1727133588264,0.06401699,63423.0,63422.0,0.18884]
[1727133588469,0.0640227,63424.0,63422.0,0.11]
[1727133588669,0.0640227,63423.0,63422.0,0.11]
[1727133588870,0.03846259,63423.0,63422.0,0.11]
[1727133590174,0.03846259,63423.0,63422.0,0.18884]
[1727133591170,0.03846259,63423.0,63422.0,0.07884]
[1727133592168,0.11730159,63423.0,63422.0,0.07884]
[1727133592370,0.10439911,63423.0,63422.0,0.07884]
[1727133592973,0.10439922,63423.0,63422.0,0.07884]
[1727133596275,0.10439922,63423.0,63418.0,0.42460182]
[1727133596276,0.157686,63420.0,63419.0,0.04722443]
[1727133596478,0.57520322,63420.0,63414.0,0.05093373]
[1727133596679,0.57520322,63420.0,63411.0,0.06376182]
[1727133596680,0.07885,63414.0,63413.0,0.04723373]
[1727133596869,0.07885,63414.0,63410.0,0.04723373]
[1727133596870,0.4809759,63414.0,63410.0,0.04723373]
[1727133597175,0.078855,63410.0,63409.0,0.04723373]
[1727133597377,0.02556539,63410.0,63408.0,0.04724526]
[1727133597584,0.078859,63407.0,63405.0,0.14644526]
[1727133597872,0.11,63411.0,63405.0,0.0992]
[1727133597873,0.07886,63406.0,63405.0,0.0992]
[1727133598474,0.06586,63406.0,63405.0,0.0992]
[1727133599872,0.09492285,63406.0,63405.0,0.0992]
[1727133600264,0.21610156,63406.0,63405.0,0.1042]
[1727133600777,0.21510156,63406.0,63405.0,0.0992]
[1727133600975,0.21610156,63406.0,63405.0,0.1042]
[1727133601575,0.12149046,63406.0,63405.0,0.1042]
[1727133602280,0.12049046,63406.0,63405.0,0.1132]
[1727133602680,0.12049046,63406.0,63405.0,0.0635]
[1727133602872,0.12049046,63406.0,63405.0,0.0495]
[1727133603072,0.12049046,63406.0,63405.0,0.0545]
[1727133604765,0.12049046,63406.0,63405.0,0.0585]
[1727133605778,0.12049086,63406.0,63405.0,0.0585]
[1727133606473,0.09492285,63406.0,63405.0,0.0535]
[1727133606672,0.09492285,63406.0,63405.0,0.0585]
[1727133606875,0.09492285,63406.0,63405.0,0.0545]
[1727133607072,0.09492285,63406.0,63405.0,0.0585]
[1727133609784,0.09492285,63406.0,63405.0,0.0535]
[1727133609994,0.09492285,63406.0,63405.0,0.0585]
[1727133619088,0.17378285,63406.0,63405.0,0.0585]
[1727133619686,0.25238128,63406.0,63405.0,0.0585]
[1727133620082,0.17378285,63406.0,63405.0,0.0585]
[1727133620479,0.19935209,63406.0,63405.0,0.0585]
[1727133620794,0.19935209,63406.0,63405.0,0.0575]
[1727133622387,0.17378285,63406.0,63405.0,0.0575]
[1727133623694,0.53458285,63406.0,63405.0,0.0575]
[1727133623996,0.53458285,63406.0,63405.0,0.0525]
[1727133624200,0.53458285,63406.0,63405.0,0.0565]
[1727133624493,0.61323597,63406.0,63405.0,0.0565]
[1727133625387,0.56015223,63406.0,63405.0,0.0565]
[1727133627794,0.19935223,63406.0,63405.0,0.0565]
[1727133627985,0.56015223,63406.0,63405.0,0.0565]
[1727133628693,0.56015223,63406.0,63405.0,0.007]
[1727133629295,0.59792638,63406.0,63405.0,0.007]
[1727133629493,0.56015223,63406.0,63405.0,0.007]
[1727133629695,0.56015349,63406.0,63405.0,0.007]
[1727133629994,1.63331349,63406.0,63405.0,0.007]
[1727133630194,1.74994117,63406.0,63405.0,0.007]
[1727133630907,0.157734,63401.0,63400.0,0.0037]
[1727133631094,0.157744,63397.0,63396.0,0.0531]
[1727133631294,0.078878,63392.0,63391.0,0.0037]
[1727133631494,0.51847794,63392.0,63387.0,0.3608]
[1727133631689,0.11,63389.0,63387.0,0.3608]
[1727133632096,0.18879994,63389.0,63387.0,0.3608]
[1727133632297,0.078885,63386.0,63385.0,0.0494]
[1727133632606,0.549685,63386.0,63385.0,0.0494]
[1727133633705,0.547685,63386.0,63385.0,0.0494]
[1727133634203,0.548685,63386.0,63385.0,0.0494]
[1727133634399,0.549685,63386.0,63385.0,0.0584]
[1727133634608,0.65636177,63386.0,63385.0,0.009]
[1727133644307,0.73495035,63386.0,63385.0,0.009]
[1727133646202,0.65606535,63386.0,63385.0,0.009]
[1727133646702,0.46918035,63386.0,63385.0,0.087886]
[1727133649208,0.39059177,63386.0,63385.0,0.087886]
[1727133655421,0.46918035,63386.0,63385.0,0.087886]
[1727133656424,0.41616802,63386.0,63385.0,0.087886]
[1727133656623,0.46726125,63386.0,63385.0,0.087886]
[1727133659823,0.46726125,63386.0,63385.0,0.009]
[1727133660029,0.52049064,63386.0,63385.0,0.009]
[1727133660227,0.54614681,63386.0,63385.0,0.009]
[1727133660624,0.64071358,63386.0,63385.0,0.009]
[1727133661125,0.54614681,63386.0,63385.0,0.009]
[1727133661518,1.65641084,63386.0,63385.0,0.009]
[1727133661719,0.15778,63382.0,63381.0,0.0037]
[1727133662017,0.157788,63379.0,63378.0,0.0458]
[1727133662214,0.18336481,63379.0,63378.0,0.0458]
[1727133662828,0.0789,63374.0,63373.0,0.0037]
[1727133663024,0.078904,63371.0,63370.0,0.0949]
[1727133663336,0.188904,63371.0,63370.0,0.0949]
[1727133664626,0.189904,63371.0,63370.0,0.0949]
[1727133665525,0.190904,63371.0,63370.0,0.0949]
[1727133666030,0.551704,63371.0,63370.0,0.0949]
[1727133667929,0.190904,63371.0,63370.0,0.0949]
[1727133668522,0.551704,63371.0,63370.0,0.0949]
[1727133669221,0.65619138,63371.0,63370.0,0.045]
[1727133669525,0.07891,63366.0,63365.0,0.0037]
[1727133669725,0.078914,63363.0,63362.0,0.0493]
[1727133669933,0.188914,63363.0,63362.0,0.0493]
[1727133671230,0.189914,63363.0,63362.0,0.0493]
[1727133671832,0.189914,63363.0,63362.0,0.128215]
[1727133672733,0.190914,63363.0,63362.0,0.128215]
[1727133678027,0.112,63363.0,63362.0,0.128215]
[1727133690744,0.190914,63363.0,63362.0,0.128215]
[1727133691256,0.190914,63363.0,63362.0,0.19117682]
[1727133692736,0.190914,63363.0,63362.0,0.0493]
[1727133692943,0.078916,63361.0,63360.0,0.0453]
[1727133693251,0.43953251,63361.0,63358.0,0.04724568]
[1727133693451,0.07892,63358.0,63357.0,0.04724568]
[1727133693650,0.18892,63358.0,63357.0,0.04724568]
[1727133693851,0.11,63358.0,63357.0,0.04724585]
[1727133694042,0.078921,63357.0,63356.0,0.04724585]
[1727133694242,0.078923,63356.0,63355.0,0.04724585]
[1727133695252,0.11,63357.0,63354.0,0.04724585]
[1727133695253,0.078924,63355.0,63354.0,0.04724585]
[1727133695546,0.188924,63355.0,63354.0,0.04724585]
[1727133696154,0.078925,63354.0,63352.0,0.125827]
[1727133696371,0.078925,63354.0,63353.0,0.04722724]
[1727133698245,0.079925,63354.0,63353.0,0.04722724]
[1727133698756,0.080925,63354.0,63353.0,0.04722724]
[1727133698952,0.10967062,63354.0,63353.0,0.04722724]
[1727133699346,0.078926,63353.0,63352.0,0.0469]
[1727133699649,0.0489,63353.0,63352.0,0.0472242]
[1727133699850,0.07893,63350.0,63349.0,0.0472242]
[1727133700072,0.07893,63350.0,63345.0,0.0472242]
[1727133700073,0.078935,63346.0,63345.0,0.0472242]
[1727133700267,0.078936,63345.0,63344.0,0.4066]
[1727133700457,0.078936,63345.0,63344.0,0.4058]
[1727133701554,0.079936,63345.0,63344.0,0.4058]
[1727133701755,0.10837173,63345.0,63344.0,0.4058]
[1727133702752,0.10937173,63345.0,63344.0,0.4058]
[1727133703555,0.47017173,63345.0,63344.0,0.045]
[1727133704057,0.39123573,63345.0,63338.0,0.0037]
[1727133704264,0.078945,63338.0,63334.0,0.0037]
[1727133704454,0.11,63335.0,63333.0,0.15618376]
[1727133704648,0.11,63335.0,63333.0,0.127151]
[1727133705452,0.11,63335.0,63334.0,0.07895]
[1727133705855,0.111,63335.0,63334.0,0.07895]
[1727133706057,0.112,63335.0,63334.0,0.07895]
[1727133707172,0.0037,63343.0,63342.0,0.07894]
[1727133707465,0.11,63344.0,63343.0,0.078939]
[1727133707777,0.11,63344.0,63343.0,0.128639]
[1727133707956,0.11,63344.0,63343.0,0.078939]
[1727133708149,0.078942,63341.0,63340.0,0.07894]
[1727133708355,0.188942,63341.0,63340.0,0.07894]
[1727133708563,0.187942,63341.0,63340.0,0.07894]
[1727133709260,0.186942,63341.0,63340.0,0.07894]
[1727133709663,0.187942,63341.0,63340.0,0.07994]
[1727133710470,0.188942,63341.0,63340.0,0.07994]
[1727133710857,0.112,63341.0,63340.0,0.07994]
[1727133720559,0.190941,63341.0,63340.0,0.0482242]
[1727133720769,0.190941,63341.0,63340.0,0.001]
[1727133720965,0.269882,63341.0,63340.0,0.001]
[1727133722285,0.078943,63340.0,63333.0,0.0037]
[1727133722476,0.078952,63332.0,63331.0,0.0472242]
[1727133722674,0.55135,63334.0,63325.0,0.04722349]
[1727133722979,0.11,63326.0,63323.0,0.04722349]
[1727133723270,0.078962,63324.0,63322.0,0.09392349]
[1727133723477,0.11,63323.0,63322.0,0.09392349]
[1727133724278,0.11,63323.0,63321.0,0.12618849]
[1727133724579,0.188964,63323.0,63321.0,0.04722349]
[1727133725374,0.188964,63323.0,63320.0,0.3608]
[1727133725375,0.111,63323.0,63320.0,0.04722349]
[1727133725567,0.3608,63322.0,63316.0,0.04722349]
[1727133725872,0.3608,63322.0,63314.0,0.3645]
[1727133725873,0.078971,63317.0,63314.0,0.3645]
[1727133726177,0.11,63315.0,63314.0,0.3608]
[1727133727472,0.111,63315.0,63314.0,0.3608]
[1727133727974,0.111,63315.0,63314.0,0.4061]
[1727133728577,0.111,63315.0,63314.0,0.485075]
[1727133728878,0.002,63315.0,63314.0,0.485075]
[1727133730466,0.002,63315.0,63314.0,0.51408682]
[1727133731783,0.112,63315.0,63314.0,0.485075]
[1727133735283,0.112,63315.0,63314.0,0.124275]
[1727133735677,0.002,63315.0,63314.0,0.124275]
[1727133737988,0.002,63315.0,63314.0,0.708115]
[1727133738180,0.002,63315.0,63314.0,0.78709]
[1727133738381,0.002,63315.0,63314.0,0.708115]
[1727133738573,0.002,63315.0,63314.0,0.78709]
[1727133738979,0.0037,63322.0,63321.0,0.078966]
[1727133739278,0.11,63324.0,63323.0,0.078964]
[1727133740282,0.16,63328.0,63327.0,0.078959]
[1727133745590,0.3608,63334.0,63327.0,0.078959]
[1727133745789,0.3608,63334.0,63333.0,0.078951]
[1727133746193,0.08131324,63339.0,63338.0,0.078945]
[1727133746194,0.00236924,63339.0,63338.0,0.078945]
[1727133747790,0.01136924,63339.0,63338.0,0.078945]
[1727133748289,0.02036924,63339.0,63338.0,0.078945]
[1727133748492,0.018,63339.0,63338.0,0.15789]
[1727133748692,0.0037,63346.0,63345.0,0.078936]
[1727133748990,0.58918483,63353.0,63344.0,0.04717419]
[1727133749194,0.58918483,63353.0,63352.0,0.078928]
[1727133749393,0.58548483,63353.0,63352.0,0.078928]
[1727133750486,0.58848483,63353.0,63352.0,0.078928]
[1727133751889,0.94928483,63353.0,63352.0,0.078928]
[1727133752394,0.95028483,63353.0,63352.0,0.078928]
[1727133757597,0.58948483,63353.0,63352.0,0.078928]
[1727133757903,0.95028483,63353.0,63352.0,0.078928]
[1727133758105,0.58948483,63353.0,63352.0,0.078928]
[1727133758305,0.95028483,63353.0,63352.0,0.078928]
[1727133760504,0.90028483,63353.0,63352.0,0.078928]
[1727133762205,0.53948483,63353.0,63352.0,0.078928]
[1727133762407,0.90028483,63353.0,63352.0,0.078928]
[1727133763197,0.078931,63350.0,63349.0,0.078931]
[1727133763398,0.11,63350.0,63346.0,0.078935]
[1727133763593,0.11,63347.0,63346.0,0.078935]
[1727133764503,0.11,63347.0,63342.0,0.08264]
[1727133764715,0.11,63343.0,63342.0,0.07894]
[1727133765808,0.111,63343.0,63342.0,0.08694]
[1727133766000,0.112,63343.0,63342.0,0.09294]
[1727133771211,0.112,63343.0,63342.0,0.20294]
[1727133771212,0.002,63343.0,63342.0,0.20294]
[1727133771599,0.0037,63352.0,63351.0,0.078929]
[1727133771804,0.86693184,63353.0,63352.0,0.078928]
[1727133772006,0.86521183,63353.0,63352.0,0.078928]
[1727133772604,0.97521183,63353.0,63352.0,0.078928]
[1727133773014,0.97721183,63353.0,63352.0,0.078928]
[1727133774415,1.05594434,63353.0,63352.0,0.078928]
[1727133774806,1.05794434,63353.0,63352.0,0.078928]
[1727133775205,1.0048031,63353.0,63352.0,0.078928]
[1727133776108,0.8948031,63353.0,63352.0,0.078928]
[1727133776311,1.0048031,63353.0,63352.0,0.078928]
[1727133777210,1.09942051,63353.0,63352.0,0.078928]
[1727133777413,1.0048031,63353.0,63352.0,0.078928]
[1727133778317,1.09942051,63353.0,63352.0,0.078928]
[1727133778711,0.078929,63351.0,63348.0,0.175332]
[1727133778918,0.1889012,63349.0,63348.0,0.175332]
[1727133779720,0.11,63349.0,63348.0,0.175332]
[1727133779917,0.18890485,63349.0,63348.0,0.175332]
[1727133780102,0.18890485,63349.0,63348.0,0.177332]
[1727133780307,0.18890485,63349.0,63348.0,0.179332]
[1727133780308,0.11,63349.0,63348.0,0.179332]
[1727133781814,0.11,63349.0,63348.0,0.24229382]
[1727133783119,0.11,63349.0,63348.0,0.179332]
[1727133783417,0.11,63349.0,63348.0,0.24229382]
[1727133791616,0.07893,63350.0,63349.0,0.078931]
[1727133791914,0.07893,63350.0,63349.0,0.14202204]
[1727133792619,0.07893,63350.0,63349.0,0.14302204]
[1727133792920,0.07893,63350.0,63349.0,0.080931]
[1727133795414,0.10452089,63350.0,63349.0,0.080931]
[1727133797014,0.1991383,63350.0,63349.0,0.080931]
[1727133797832,0.19913788,63350.0,63349.0,0.080931]
[1727133799340,0.55993788,63350.0,63349.0,0.080931]
[1727133801116,0.55993788,63350.0,63349.0,0.002]
[1727133801117,0.54425047,63350.0,63349.0,0.002]
[1727133801424,1.05400597,63350.0,63349.0,0.002]
[1727133802724,1.05378803,63350.0,63349.0,0.002]
[1727133803123,1.41458803,63350.0,63349.0,0.002]
[1727133803323,1.37861398,63350.0,63349.0,0.002]
[1727133803529,1.47632029,63350.0,63349.0,0.001]
[1727133803724,1.47632029,63350.0,63344.0,0.04732276]
[1727133803725,0.078936,63345.0,63344.0,0.04732276]
[1727133803930,0.188936,63345.0,63344.0,0.04732276]
[1727133805032,0.549736,63345.0,63344.0,0.04732276]
[1727133805930,0.549736,63345.0,63344.0,0.05032276]
[1727133806231,0.549736,63345.0,63344.0,0.05332276]
[1727133806426,0.549736,63345.0,63344.0,0.006]
[1727133808125,0.549736,63345.0,63344.0,0.05332276]
[1727133808439,0.5775183,63345.0,63344.0,0.05332276]
[1727133812530,0.5775183,63345.0,63344.0,0.006]
[1727133812851,0.4675183,63345.0,63344.0,0.05329552]
[1727133813037,0.4675183,63345.0,63344.0,0.006]
[1727133814728,0.4675183,63345.0,63344.0,0.05329435]
[1727133816041,0.1067183,63345.0,63344.0,0.05329435]
[1727133816225,0.4675183,63345.0,63344.0,0.05329435]
[1727133816731,0.078943,63340.0,63337.0,0.0037]
[1727133816929,0.157898,63335.0,63334.0,0.0037]
[1727133817137,0.157898,63335.0,63326.0,0.008]
[1727133817138,0.07895,63334.0,63330.0,0.0037]
[1727133817341,0.3608,63336.0,63330.0,0.06309234]
[1727133817342,0.3608,63331.0,63330.0,0.06309234]
[1727133817636,0.3608,63331.0,63321.0,0.0458]
[1727133817637,0.07896,63326.0,63325.0,0.07870228]
[1727133817842,0.11,63326.0,63322.0,0.07870228]
[1727133818141,0.11,63326.0,63323.0,0.06307234]
[1727133818142,0.078962,63324.0,63323.0,0.06307234]
[1727133818343,0.078962,63324.0,63318.0,0.47187234]
[1727133818344,0.4708,63324.0,63318.0,0.47187234]
[1727133818642,0.11,63319.0,63318.0,0.42387234]
[1727133818941,0.188969,63319.0,63318.0,0.3608]
[1727133819127,0.188969,63319.0,63316.0,0.06307234]
[1727133819329,0.3608,63318.0,63314.0,0.0464]
[1727133819530,0.099,63315.0,63314.0,0.0464]
[1727133819753,0.11,63315.0,63314.0,0.0464]
[1727133819938,0.3608,63318.0,63315.0,0.078973]
[1727133820132,0.3608,63318.0,63317.0,0.078971]
[1727133821037,0.3608,63318.0,63317.0,0.14195866]
[1727133822035,0.3618,63318.0,63317.0,0.078971]
[1727133822231,0.3628,63318.0,63317.0,0.078971]
[1727133822742,0.3628,63318.0,63317.0,0.079971]
[1727133823467,0.44177,63318.0,63317.0,0.001]
[1727133831846,0.52074,63318.0,63317.0,0.001]
[1727133832041,1.67351,63318.0,63317.0,0.001]
[1727133832237,1.72271,63318.0,63317.0,0.001]
[1727133832744,1.72271,63318.0,63310.0,0.0037]
[1727133832745,0.078979,63311.0,63310.0,0.0037]
[1727133833047,0.5208,63311.0,63303.0,0.0514]
[1727133833249,0.16,63305.0,63303.0,0.0477]
[1727133833439,0.078985,63306.0,63303.0,0.0477]
[1727133833440,0.3645,63311.0,63304.0,0.078987]
[1727133833641,0.3645,63311.0,63303.0,0.0477]
[1727133833642,0.078982,63309.0,63305.0,0.078986]
[1727133833948,0.078982,63309.0,63306.0,0.078985]
[1727133834736,0.078983,63308.0,63306.0,0.078985]
[1727133835747,0.078984,63307.0,63306.0,0.078985]
[1727133836044,0.001,63309.0,63303.0,0.0477]
[1727133836350,0.001,63308.0,63303.0,0.0477]
[1727133836848,0.16,63305.0,63301.0,0.3608]
[1727133837347,0.07899,63302.0,63301.0,0.3608]
[1727133838633,0.07999,63302.0,63301.0,0.3608]
[1727133839039,0.08099,63302.0,63301.0,0.3608]
[1727133840640,0.002,63302.0,63301.0,0.078991]
[1727133842742,0.3608,63303.0,63301.0,0.078991]
[1727133842942,0.2859,63303.0,63302.0,0.07899]
[1727133843445,0.2859,63303.0,63297.0,0.0464]
[1727133843446,0.0037,63307.0,63306.0,0.078985]
[1727133843645,0.439779,63311.0,63301.0,0.3608]
[1727133843852,0.001,63303.0,63301.0,0.3608]
[1727133844046,0.0037,63309.0,63308.0,0.078982]
[1727133844252,0.439779,63311.0,63310.0,0.07898]
[1727133846558,0.440779,63311.0,63310.0,0.08098]
[1727133847059,0.441779,63311.0,63310.0,0.08098]
[1727133851172,0.601779,63311.0,63310.0,0.002]
[1727133852366,0.551779,63311.0,63310.0,0.002]
[1727133861556,0.63065737,63311.0,63310.0,0.002]
[1727133863556,0.64648531,63311.0,63310.0,0.002]
[1727133863953,0.630758,63311.0,63310.0,0.002]
[1727133864158,0.726458,63311.0,63310.0,0.002]
[1727133864559,0.76060477,63311.0,63310.0,0.002]
[1727133864756,0.726458,63311.0,63310.0,0.002]
[1727133865257,0.76063751,63311.0,63310.0,0.002]
[1727133866662,0.39983751,63311.0,63310.0,0.002]
[1727133866966,1.12143751,63311.0,63310.0,0.002]
[1727133867560,1.087258,63311.0,63310.0,0.002]
[1727133867757,2.240077,63311.0,63310.0,0.002]
[1727133868062,2.240077,63311.0,63295.0,0.008]
[1727133868063,0.079,63294.0,63293.0,0.0037]
[1727133868366,0.079019,63279.0,63274.0,0.15772728]
[1727133868551,0.439819,63279.0,63275.0,0.0494]
[1727133868959,0.439819,63279.0,63276.0,0.079022]
[1727133868960,0.3608,63279.0,63276.0,0.079022]
[1727133869159,0.3608,63279.0,63275.0,0.1594]
[1727133869456,0.3608,63279.0,63278.0,0.18902]
[1727133869661,0.3618,63279.0,63278.0,0.18902]
[1727133870059,0.3608,63279.0,63278.0,0.18902]
[1727133870263,0.3618,63279.0,63278.0,0.07902]
[1727133870663,0.32126889,63279.0,63278.0,0.07902]
[1727133870854,0.32326889,63279.0,63278.0,0.07902]
[1727133872368,0.32226889,63279.0,63278.0,0.07902]
[1727133872562,0.002,63279.0,63278.0,0.43982]
[1727133872766,0.002,63279.0,63278.0,1.5139]
[1727133874265,0.002,63279.0,63278.0,0.9139]
[1727133875168,0.002,63279.0,63278.0,0.5531]
[1727133875371,0.002,63279.0,63278.0,0.07902]
[1727133882373,0.081019,63279.0,63278.0,0.07902]
[1727133883666,0.002,63279.0,63278.0,0.07902]
[1727133889175,0.002,63279.0,63278.0,1.1531]
[1727133889368,0.0037,63287.0,63278.0,1.1531]
[1727133889369,0.082709,63287.0,63286.0,0.07901]
[1727133889578,0.079009,63287.0,63286.0,0.07901]
[1727133890372,0.02871434,63287.0,63280.0,0.079017]
[1727133890680,0.189016,63281.0,63280.0,0.079017]
[1727133891276,0.07902,63278.0,63276.0,0.079022]
[1727133891678,0.07902,63278.0,63277.0,0.125021]
[1727133892677,0.4114,63287.0,63269.0,0.07870228]
[1727133892678,0.16,63279.0,63269.0,0.07870228]
[1727133892876,0.07903,63270.0,63268.0,0.36164]
[1727133893090,0.079031,63269.0,63266.0,0.079034]
[1727133893579,0.078031,63269.0,63266.0,0.079034]
[1727133894775,0.078031,63269.0,63266.0,0.080034]
[1727133894776,0.079031,63269.0,63266.0,0.080034]
[1727133895177,0.079031,63269.0,63266.0,0.001]
[1727133895394,0.079031,63269.0,63268.0,0.079032]
[1727133895586,0.080031,63269.0,63268.0,0.079032]
[1727133896482,0.079031,63269.0,63268.0,0.079032]
[1727133896688,0.079034,63267.0,63266.0,0.001]
[1727133896888,0.158068,63267.0,63266.0,0.001]
[1727133897092,0.158068,63267.0,63262.0,0.00237106]
[1727133897093,0.079039,63263.0,63262.0,0.00237106]
[1727133897478,0.158078,63263.0,63262.0,0.00237106]
[1727133897890,0.518878,63263.0,63262.0,0.00237106]
[1727133899084,0.519878,63263.0,63262.0,0.00237106]
[1727133899681,0.520878,63263.0,63262.0,0.00237106]